bitfinex-derivatives/quotes_BTCF0:USTF0_20251118
["timestamp","ask_amount","ask_price","bid_price","bid_amount"]
[1763497247524,0.05627,93184.0,93183.0,0.40619]
[1763497247916,0.04423,93184.0,93183.0,0.40619]
[1763497249522,0.04323,93184.0,93183.0,0.40619]
[1763497249917,0.02106,93184.0,93183.0,0.40619]
[1763497251320,0.05627,93192.0,93191.0,0.04539]
[1763497253518,0.04323,93192.0,93191.0,0.04539]
[1763497257428,0.0001609,93193.0,93192.0,0.1521423]
[1763497258229,9e-07,93193.0,93192.0,0.1521423]
[1763497258430,0.04248,93212.0,93211.0,0.04494]
[1763497258729,0.05567,93226.0,93225.0,0.04494]
[1763497258933,0.06640842,93226.0,93225.0,0.04494]
[1763497259327,0.07959842,93226.0,93225.0,0.04494]
[1763497260836,0.04248,93217.0,93216.0,0.0001609]
[1763497261032,0.04248,93217.0,93216.0,0.0451009]
[1763497261221,0.04248,93217.0,93216.0,0.1524355]
[1763497261424,0.02219,93220.0,93219.0,0.1522712]
[1763497261628,0.02219,93220.0,93219.0,0.5130712]
[1763497261933,0.02419,93226.0,93225.0,0.1522643]
[1763497262130,0.04248,93226.0,93225.0,0.04494]
[1763497263028,0.02119,93226.0,93225.0,0.04494]
[1763497263421,0.01319,93233.0,93225.0,0.04494]
[1763497263626,0.00026811,93246.0,93234.0,0.04494]
[1763497263821,0.00026811,93246.0,93234.0,0.3037]
[1763497264034,0.05567,93256.0,93255.0,0.04494]
[1763497264426,0.04248,93251.0,93250.0,0.0019307]
[1763497264623,0.04248,93251.0,93250.0,0.0468707]
[1763497266433,0.04248,93251.0,93250.0,0.0242307]
[1763497267539,0.04248,93251.0,93250.0,0.0468707]
[1763497269134,0.01319,93256.0,93255.0,0.1522297]
[1763497269135,0.02119,93256.0,93255.0,0.1522297]
[1763497269438,0.0001609,93260.0,93259.0,0.04494]
[1763497269636,0.0223509,93260.0,93259.0,0.04494]
[1763497269831,0.0436409,93260.0,93259.0,0.04494]
[1763497270427,0.0223509,93260.0,93259.0,0.04494]
[1763497270633,0.0436409,93260.0,93259.0,0.04494]
[1763497270834,0.0446409,93260.0,93259.0,0.04494]
[1763497271141,0.0011609,93260.0,93259.0,0.04494]
[1763497271332,0.05567,93280.0,93279.0,0.1522021]
[1763497271638,0.04274799,93286.0,93285.0,0.1521952]
[1763497271844,0.00026799,93286.0,93285.0,0.1521952]
[1763497272136,0.3608,93316.0,93295.0,0.04494]
[1763497272335,0.05567,93304.0,93303.0,0.04494]
[1763497273935,0.05767,93304.0,93303.0,0.04494]
[1763497274437,0.04448,93304.0,93303.0,0.04494]
[1763497274640,0.04648,93304.0,93303.0,0.04494]
[1763497275530,0.04248,93301.0,93300.0,0.0019307]
[1763497276134,0.04248,93296.0,93295.0,0.3608]
[1763497276540,0.04248,93291.0,93290.0,0.0019307]
[1763497277229,0.04248,93291.0,93276.0,0.3608]
[1763497277230,0.04248,93277.0,93276.0,0.3608]
[1763497277425,0.04248,93261.0,93260.0,0.40574]
[1763497277638,0.04248,93261.0,93260.0,0.4076707]
[1763497278237,0.01319,93267.0,93266.0,0.04494]
[1763497278238,0.05567,93267.0,93266.0,0.04494]
[1763497279543,0.05567,93267.0,93260.0,0.40574]
[1763497279544,0.04248,93261.0,93260.0,0.40574]
[1763497279740,0.04248,93261.0,93260.0,0.4076707]
[1763497280432,0.02119,93261.0,93260.0,0.5149547]
[1763497280835,0.0555,93267.0,93266.0,0.1521471]
[1763497281240,0.04231,93267.0,93266.0,0.1521471]
[1763497281441,0.00016081,93270.0,93269.0,0.04497]
[1763497281634,0.05715081,93270.0,93269.0,0.04497]
[1763497282743,0.04446081,93270.0,93269.0,0.04497]
[1763497283938,0.00016081,93270.0,93269.0,0.04497]
[1763497284141,0.00016081,93270.0,93269.0,0.40577]
[1763497284746,0.02234081,93270.0,93269.0,0.40577]
[1763497285643,0.04346081,93270.0,93269.0,0.40577]
[1763497286636,0.04446081,93270.0,93269.0,0.40577]
[1763497286840,0.04446081,93270.0,93269.0,0.3608]
[1763497287651,0.04446081,93270.0,93269.0,0.3832]
[1763497287946,0.04446081,93270.0,93269.0,0.3608]
[1763497288541,0.04446081,93270.0,93269.0,0.4680736]
[1763497288942,0.04446081,93270.0,93269.0,0.3608]
[1763497289853,0.04394,93262.0,93261.0,0.3608]
[1763497292857,0.04394,93262.0,93260.0,0.0019307]
[1763497293063,0.04394,93252.0,93251.0,0.36096081]
[1763497293666,0.06771758,93252.0,93251.0,0.36096081]
[1763497294761,0.06771758,93252.0,93251.0,0.40517081]
[1763497295359,0.06771758,93252.0,93251.0,0.40617081]
[1763497296062,0.02377758,93252.0,93251.0,0.40617081]
[1763497297060,0.31575,93264.0,93263.0,0.04421]
[1763497297262,0.08097703,93264.0,93263.0,0.04421]
[1763497297457,0.41843637,93287.0,93263.0,0.04421]
[1763497297762,0.04510081,93270.0,93269.0,0.04421]
[1763497299165,0.00116081,93270.0,93269.0,0.04421]
[1763497299470,0.04510081,93270.0,93269.0,0.04421]
[1763497300562,0.04510081,93270.0,93269.0,0.02302]
[1763497300862,0.04510081,93270.0,93269.0,0.04421]
[1763497301760,0.02185081,93270.0,93269.0,0.04421]
[1763497302362,0.05719,93288.0,93287.0,0.04421]
[1763497302566,0.05719,93288.0,93287.0,0.40501]
[1763497302756,0.02169,93288.0,93287.0,0.40501]
[1763497302957,0.05719,93294.0,93293.0,0.04421]
[1763497304668,0.02369,93294.0,93293.0,0.04421]
[1763497304970,0.04694,93294.0,93293.0,0.04421]
[1763497305866,0.06019,93294.0,93293.0,0.04421]
[1763497306271,0.04394,93291.0,93290.0,0.1533902]
[1763497306464,0.02169,93291.0,93290.0,0.1533902]
[1763497306659,0.04394,93291.0,93290.0,0.1533902]
[1763497306863,0.02169,93291.0,93290.0,0.1533902]
[1763497307060,0.003,93294.0,93293.0,0.151456]
[1763497307571,0.04253081,93303.0,93295.0,0.1072419]
[1763497307769,0.08647081,93303.0,93302.0,0.04421]
[1763497307965,0.08647081,93303.0,93302.0,0.02302]
[1763497309174,0.08647081,93303.0,93302.0,0.04421]
[1763497309375,0.05097081,93303.0,93302.0,0.04421]
[1763497309676,0.07473498,93303.0,93302.0,0.04421]
[1763497310474,0.09698498,93303.0,93302.0,0.04421]
[1763497310666,0.09698498,93303.0,93302.0,0.02302]
[1763497310860,0.04394,93301.0,93300.0,0.0249507]
[1763497311062,0.06770417,93301.0,93300.0,0.0461407]
[1763497312074,0.06770417,93301.0,93300.0,0.0019307]
[1763497312562,0.06770417,93301.0,93296.0,0.3608]
[1763497312563,0.04394,93297.0,93296.0,0.3608]
[1763497312874,0.01325,93294.0,93288.0,0.38382]
[1763497313076,0.01325,93294.0,93290.0,0.0019307]
[1763497313077,0.04394,93291.0,93290.0,0.0019307]
[1763497313263,0.06770417,93291.0,93290.0,0.0019307]
[1763497318071,0.04496,93285.0,93284.0,0.00016081]
[1763497318265,0.06872417,93285.0,93284.0,8.1e-07]
[1763497320177,0.32724417,93285.0,93284.0,8.1e-07]
[1763497321376,0.04496,93278.0,93277.0,0.3608]
[1763497321676,0.06872417,93278.0,93277.0,0.3608]
[1763497322476,0.06872417,93278.0,93277.0,0.40498]
[1763497322672,0.06872417,93278.0,93277.0,0.3608]
[1763497322874,0.0232,93260.0,93259.0,0.3608]
[1763497323082,0.02176,93248.0,93247.0,0.40498]
[1763497323281,0.05757,93248.0,93247.0,0.40498]
[1763497323678,0.02176,93248.0,93247.0,0.40498]
[1763497323983,0.04496,93264.0,93263.0,0.04418]
[1763497324178,0.08130199,93264.0,93263.0,0.04418]
[1763497324974,0.02373199,93264.0,93263.0,0.04418]
[1763497325183,0.02373199,93264.0,93262.0,0.3608]
[1763497325184,0.25852,93271.0,93270.0,0.04418]
[1763497325383,0.25852,93271.0,93270.0,0.4069107]
[1763497325384,0.32722496,93271.0,93270.0,0.4069107]
[1763497325777,0.32722496,93271.0,93270.0,0.3627307]
[1763497326777,0.32822496,93271.0,93270.0,0.3627307]
[1763497327184,0.32722496,93271.0,93270.0,0.3627307]
[1763497328374,0.32722496,93271.0,93270.0,0.4069107]
[1763497328570,0.32722496,93271.0,93270.0,0.5141832]
[1763497329381,0.32722496,93271.0,93270.0,0.4069107]
[1763497329581,0.32722496,93271.0,93270.0,0.3608]
[1763497329883,0.04496,93262.0,93261.0,0.36096081]
[1763497330080,0.06870496,93262.0,93261.0,0.36096081]
[1763497330278,0.04496,93262.0,93261.0,0.00016081]
[1763497330584,0.04496,93247.0,93246.0,0.04444811]
[1763497330779,0.02176,93247.0,93246.0,0.04444811]
[1763497331484,0.04496,93247.0,93246.0,0.04444811]
[1763497332580,0.02176,93247.0,93246.0,0.04444811]
[1763497333090,0.02176,93247.0,93246.0,0.04544811]
[1763497333282,0.001,93250.0,93249.0,0.04418]
[1763497333587,0.05757,93256.0,93255.0,0.1514697]
[1763497334284,0.001,93260.0,93259.0,0.1514651]
[1763497334485,0.40576,93271.0,93270.0,0.04418]
[1763497334784,0.40576,93271.0,93270.0,0.0461107]
[1763497335186,0.04496,93271.0,93270.0,0.0019307]
[1763497335779,0.04496,93271.0,93261.0,0.00016081]
[1763497335780,0.04496,93262.0,93261.0,0.02207081]
[1763497335978,0.04496,93262.0,93261.0,0.15162361]
[1763497336578,0.04496,93262.0,93261.0,0.04434081]
[1763497337787,0.05757,93267.0,93266.0,0.04418]
[1763497340183,0.05757,93267.0,93266.0,0.1514571]
[1763497340391,0.05757,93267.0,93266.0,0.04418]
[1763497342083,0.05757,93267.0,93261.0,0.00016081]
[1763497342084,0.04521,93262.0,93261.0,0.04295081]
[1763497342488,0.04521,93262.0,93261.0,0.00016081]
[1763497344396,0.04521,93262.0,93261.0,0.04295081]
[1763497344796,0.04521,93262.0,93261.0,0.00016081]
[1763497345594,0.0688527,93262.0,93261.0,0.00016081]
[1763497347996,0.0688527,93262.0,93261.0,0.04337081]
[1763497348592,0.0688527,93262.0,93261.0,0.00016081]
[1763497354900,0.0567,93247.0,93246.0,0.36106811]
[1763497355089,0.0803427,93247.0,93246.0,0.36106811]
[1763497356697,0.0803427,93247.0,93246.0,0.38251811]
[1763497357006,0.0803427,93247.0,93246.0,0.38351811]
[1763497357502,0.0803427,93247.0,93246.0,0.38451811]
[1763497357702,0.0803427,93247.0,93246.0,0.38351811]
[1763497358100,0.0803427,93247.0,93246.0,0.38251811]
[1763497358306,0.0803427,93247.0,93246.0,0.36106811]
[1763497358805,0.0803427,93247.0,93246.0,0.40427811]
[1763497359000,0.0236427,93247.0,93246.0,0.40427811]
[1763497359196,0.001,93250.0,93249.0,0.04321]
[1763497359392,0.02464872,93250.0,93249.0,0.04321]
[1763497359606,0.3608,93257.0,93256.0,0.1504986]
[1763497359903,0.02365061,93257.0,93256.0,0.04321]
[1763497360098,0.04403,93255.0,93254.0,0.3608]
[1763497360306,0.04403,93255.0,93254.0,0.40401]
[1763497360897,0.04403,93255.0,93254.0,0.3608]
[1763497361302,0.04403,93251.0,93250.0,0.0233807]
[1763497361691,0.04403,93251.0,93250.0,0.0451407]
[1763497362196,0.04403,93251.0,93250.0,0.0019307]
[1763497364208,0.04403,93251.0,93250.0,0.0451407]
[1763497364600,0.04403,93251.0,93250.0,0.0019307]
[1763497365002,0.06769353,93251.0,93250.0,0.0019307]
[1763497365898,0.06769353,93251.0,93250.0,0.0233807]
[1763497366306,0.06769353,93251.0,93250.0,0.0451407]
[1763497370012,0.04403,93251.0,93250.0,0.0451407]
[1763497370204,0.06768783,93251.0,93250.0,0.0451407]
[1763497374708,0.06768783,93251.0,93250.0,0.1524362]
[1763497375010,0.02365783,93251.0,93250.0,0.1524362]
[1763497375605,0.06768783,93251.0,93250.0,0.1524362]
[1763497376412,0.06768783,93251.0,93250.0,0.1534362]
[1763497377013,0.06768783,93251.0,93250.0,0.1544362]
[1763497377611,0.06768783,93251.0,93250.0,0.1534362]
[1763497377802,0.06768783,93251.0,93250.0,0.0461407]
[1763497378010,0.06768783,93251.0,93250.0,0.0029307]
[1763497378308,0.06768783,93251.0,93250.0,0.0249107]
[1763497378504,0.06768783,93251.0,93250.0,0.0029307]
[1763497380509,0.32624783,93251.0,93250.0,0.0029307]
[1763497380717,0.05665,93247.0,93246.0,0.00026811]
[1763497380906,0.04363,93239.0,93238.0,0.1187]
[1763497381107,0.04363,93232.0,93228.0,0.0577786]
[1763497381312,0.04363,93225.0,93224.0,0.0577786]
[1763497381518,0.04363,93216.0,93215.0,0.3608]
[1763497381703,0.04363,93216.0,93208.0,0.00012187]
[1763497381704,0.04363,93209.0,93208.0,0.00012187]
[1763497381906,0.3258558,93209.0,93208.0,0.00012187]
[1763497382109,0.3258558,93209.0,93206.0,0.00026822]
[1763497382110,0.04363,93207.0,93206.0,9e-08]
[1763497382413,0.06725406,93207.0,93206.0,9e-08]
[1763497383218,0.04373399,93207.0,93206.0,9e-08]
[1763497385818,0.30233399,93207.0,93206.0,0.04514009]
[1763497386017,0.30233399,93207.0,93206.0,0.02198009]
[1763497386217,0.25870399,93207.0,93206.0,9e-08]
[1763497387117,0.25870399,93207.0,93206.0,0.02198009]
[1763497387315,0.28096399,93207.0,93206.0,0.02198009]
[1763497387513,0.30233399,93207.0,93206.0,0.04514009]
[1763497389012,0.30233399,93207.0,93206.0,0.04614009]
[1763497389413,0.30233399,93207.0,93206.0,0.02298009]
[1763497389619,0.30233399,93207.0,93206.0,0.04514009]
[1763497390009,0.00010399,93207.0,93206.0,0.40594009]
[1763497390213,0.25864,93230.0,93224.0,0.04514]
[1763497390415,0.0437909,93225.0,93224.0,0.04514]
[1763497391322,0.04363,93221.0,93220.0,0.0239107]
[1763497391517,0.04363,93221.0,93220.0,0.0019307]
[1763497391919,0.30227,93221.0,93220.0,0.0019307]
[1763497392420,0.04363,93207.0,93206.0,0.36080009]
[1763497392921,0.04363,93207.0,93206.0,0.40594009]
[1763497393509,0.02226,93207.0,93206.0,0.40594009]
[1763497393708,0.04363,93207.0,93206.0,0.40594009]
[1763497393916,0.04363,93207.0,93206.0,0.40694009]
[1763497395823,0.04363,93207.0,93206.0,0.36180009]
[1763497398421,0.04363,93207.0,93206.0,0.00100009]
[1763497399021,0.04363,93207.0,93206.0,0.04614009]
[1763497399320,0.04463,93210.0,93209.0,0.04514]
[1763497400020,0.001,93210.0,93209.0,0.04514]
[1763497401716,0.30299,93221.0,93220.0,0.04371]
[1763497401920,0.30299,93221.0,93220.0,0.0456407]
[1763497402120,0.30299,93221.0,93220.0,0.0019307]
[1763497402626,0.30299,93221.0,93220.0,0.0469307]
[1763497403627,0.30299,93221.0,93220.0,0.0019307]
[1763497403829,0.30299,93221.0,93220.0,0.0252007]
[1763497404125,0.30299,93221.0,93220.0,0.0469307]
[1763497404425,0.04435,93221.0,93220.0,0.0469307]
[1763497404619,0.37382,93248.0,93224.0,0.1523254]
[1763497404814,0.05804,93248.0,93247.0,0.045]
[1763497405021,0.02293,93251.0,93250.0,0.0252007]
[1763497405222,0.04502,93251.0,93250.0,0.0469307]
[1763497405827,0.04502,93251.0,93250.0,0.0252007]
[1763497406228,0.04502,93251.0,93250.0,0.0019307]
[1763497406819,0.04502,93251.0,93250.0,0.0252007]
[1763497407816,0.08745,93258.0,93257.0,0.04376]
[1763497408526,0.04465,93257.0,93256.0,0.3608]
[1763497408724,0.04465,93257.0,93256.0,0.40456]
[1763497408931,0.0288691,93258.0,93257.0,0.1510474]
[1763497409222,0.0458109,93260.0,93259.0,0.04376]
[1763497409818,0.0001609,93260.0,93259.0,0.40456]
[1763497410019,0.05842,93276.0,93275.0,0.04376]
[1763497410218,0.05842,93276.0,93259.0,0.3608]
[1763497410219,0.04465,93272.0,93271.0,0.3608]
[1763497412227,0.04565,93272.0,93271.0,0.3608]
[1763497412525,0.04465,93263.0,93262.0,8.1e-07]
[1763497412832,0.40545,93263.0,93262.0,8.1e-07]
[1763497414627,0.04465,93251.0,93250.0,0.3608]
[1763497416727,0.04465,93242.0,93241.0,0.40472081]
[1763497416927,0.04465,93242.0,93241.0,0.38272081]
[1763497417333,0.04465,93242.0,93241.0,0.40472081]
[1763497421130,0.04465,93242.0,93241.0,0.51202661]
[1763497421338,0.40545,93255.0,93254.0,0.04376]
[1763497422438,0.04684803,93250.0,93249.0,0.02176]
[1763497422938,0.04684803,93250.0,93249.0,0.04376]
[1763497423840,0.02421803,93250.0,93249.0,0.04376]
[1763497424144,0.04684803,93250.0,93249.0,0.04376]
[1763497424930,0.00219803,93250.0,93249.0,0.04376]
[1763497425631,0.04684803,93250.0,93249.0,0.04376]
[1763497427040,0.04684803,93250.0,93249.0,0.04476]
[1763497427433,0.04684803,93250.0,93249.0,0.04376]
[1763497430138,0.07041653,93250.0,93249.0,0.04376]
[1763497430339,0.04684803,93250.0,93249.0,0.04376]
[1763497430541,0.04465,93242.0,93241.0,0.40472081]
[1763497431937,0.04465,93242.0,93241.0,0.40572081]
[1763497434242,0.04465,93242.0,93241.0,0.40472081]
[1763497436950,0.04465,93242.0,93241.0,0.40572081]
[1763497437138,0.04465,93242.0,93241.0,0.38372081]
[1763497437649,0.04465,93242.0,93241.0,0.38272081]
[1763497438439,0.04465,93242.0,93241.0,0.40409081]
[1763497440743,0.05678,93248.0,93247.0,0.04359]
[1763497440943,0.08039838,93248.0,93247.0,0.04359]
[1763497442139,0.08039838,93248.0,93241.0,0.40455081]
[1763497442140,0.04281,93242.0,93241.0,0.40455081]
[1763497442344,0.06642838,93242.0,93241.0,0.40455081]
[1763497442544,0.42722838,93242.0,93241.0,0.00016081]
[1763497442745,0.04281,93225.0,93224.0,9.964e-05]
[1763497442945,0.06642838,93225.0,93224.0,0.04368964]
[1763497444156,0.06642838,93225.0,93224.0,0.04468964]
[1763497444548,0.06642838,93225.0,93224.0,0.00109964]
[1763497444854,0.06639124,93225.0,93224.0,0.04368964]
[1763497445251,0.06639124,93225.0,93224.0,0.02231964]
[1763497447057,0.06639124,93225.0,93224.0,9.964e-05]
[1763497447961,0.06639124,93225.0,93224.0,0.02231964]
[1763497448159,0.06639124,93225.0,93224.0,0.04368964]
[1763497448762,0.04281,93225.0,93224.0,0.04368964]
[1763497449359,0.05429,93233.0,93232.0,0.04359]
[1763497449555,0.07782041,93233.0,93232.0,0.04359]
[1763497449749,0.04281,93225.0,93224.0,0.04368964]
[1763497454549,0.40361,93225.0,93224.0,9.964e-05]
[1763497454762,0.42724299,93225.0,93224.0,9.964e-05]
[1763497454957,0.04281,93214.0,93213.0,0.40439]
[1763497455365,0.00219803,93210.0,93204.0,0.50951658]
[1763497455766,0.04500803,93210.0,93209.0,0.04359]
[1763497455956,0.0451095,93210.0,93209.0,0.04359]
[1763497456158,0.0441095,93210.0,93209.0,0.04359]
[1763497456364,0.0431095,93210.0,93209.0,0.04359]
[1763497457163,0.0431095,93210.0,93209.0,0.04559]
[1763497458069,0.0002995,93210.0,93209.0,0.04559]
[1763497458868,0.0219795,93210.0,93209.0,0.04559]
[1763497459055,0.0431095,93210.0,93209.0,0.04559]
[1763497463163,0.0431095,93210.0,93209.0,0.002]
[1763497465068,0.0431095,93210.0,93209.0,0.001]
[1763497465569,0.01187,93208.0,93203.0,0.38396]
[1763497465869,0.25864,93207.0,93203.0,0.40533]
[1763497470365,0.30123,93207.0,93206.0,0.04522009]
[1763497470666,0.25864,93207.0,93206.0,9e-08]
[1763497471265,0.28228921,93207.0,93206.0,9e-08]
[1763497471857,0.04259,93189.0,93188.0,0.04522]
[1763497472074,0.04259,93174.0,93173.0,0.40602]
[1763497472366,0.04259,93167.0,93166.0,0.04548834]
[1763497472962,0.04159,93167.0,93166.0,0.04548834]
[1763497473558,0.04159,93167.0,93166.0,0.15288054]
[1763497474067,0.00093,93170.0,93169.0,0.1526088]
[1763497474281,0.04266981,93174.0,93173.0,0.04522]
[1763497475973,7.981e-05,93174.0,93173.0,0.04522]
[1763497476566,0.04266981,93174.0,93173.0,0.04522]
[1763497479670,0.04266981,93174.0,93170.0,0.00200069]
[1763497479671,0.04259,93171.0,93170.0,0.00200069]
[1763497479876,0.04259,93167.0,93166.0,0.38420834]
[1763497480575,0.04259,93167.0,93166.0,0.40628834]
[1763497481478,0.00093,93170.0,93169.0,0.04522]
[1763497483468,7.981e-05,93174.0,93173.0,0.1526042]
[1763497484166,8e-07,93176.0,93175.0,0.04522]
[1763497484378,0.38183,93193.0,93192.0,0.04522]
[1763497484567,0.40339,93193.0,93192.0,0.04522]
[1763497484771,0.30131,93199.0,93198.0,0.04522]
[1763497486170,0.25872,93199.0,93198.0,0.04522]
[1763497486565,0.30131,93199.0,93198.0,0.04522]
[1763497486771,0.04259,93190.0,93189.0,0.04538099]
[1763497486977,0.04352,93190.0,93189.0,0.04538099]
[1763497489172,0.04352,93190.0,93189.0,0.00016099]
[1763497496381,0.06698829,93190.0,93189.0,0.00016099]
[1763497496576,0.06698829,93190.0,93189.0,0.02330099]
[1763497496778,0.04352,93190.0,93189.0,0.04538099]
[1763497497169,0.02196,93190.0,93189.0,0.04538099]
[1763497497380,0.00093,93190.0,93189.0,0.04538099]
[1763497497775,0.02305,93190.0,93189.0,0.04538099]
[1763497498082,0.04411,93190.0,93189.0,0.04538099]
[1763497499377,0.04411,93190.0,93189.0,0.15274669]
[1763497500377,0.00093,93190.0,93189.0,0.15274669]
[1763497500578,0.04411,93190.0,93189.0,0.04538099]
[1763497503582,0.04411,93190.0,93189.0,0.00016099]
[1763497503778,0.06761941,93190.0,93189.0,0.00016099]
[1763497505790,0.04318,93180.0,93179.0,0.3608]
[1763497505995,0.30283,93180.0,93179.0,0.3608]
[1763497509393,0.30283,93180.0,93179.0,0.3833]
[1763497509892,0.30283,93180.0,93179.0,0.3608]
[1763497510092,0.30283,93180.0,93168.0,0.1017686]
[1763497510093,0.04318,93169.0,93168.0,0.1017686]
[1763497510392,0.05625,93168.0,93167.0,0.3608]
[1763497510884,0.05625,93168.0,93167.0,0.40479]
[1763497511080,0.04318,93168.0,93167.0,0.40479]
[1763497511295,0.04318,93176.0,93175.0,0.04399]
[1763497511490,0.06672129,93176.0,93175.0,0.04399]
[1763497511687,0.07979129,93176.0,93175.0,0.04399]
[1763497511890,0.04318,93171.0,93170.0,0.00200069]
[1763497512090,0.04318,93171.0,93170.0,0.04599069]
[1763497512487,0.06671685,93171.0,93170.0,0.04599069]
[1763497512995,0.04565685,93171.0,93170.0,0.04599069]
[1763497513289,0.02353685,93171.0,93170.0,0.04599069]
[1763497513493,0.3608,93175.0,93174.0,0.04399]
[1763497513794,0.42751382,93175.0,93174.0,0.04399]
[1763497515192,0.38433382,93175.0,93174.0,0.04399]
[1763497515394,0.28084,93180.0,93179.0,0.04399]
[1763497515597,0.30533617,93180.0,93179.0,0.04399]
[1763497515797,0.30283,93180.0,93179.0,0.04399]
[1763497516589,0.05625,93168.0,93167.0,0.40479]
[1763497516798,0.04318,93168.0,93167.0,0.40479]
[1763497517992,0.04318,93168.0,93167.0,0.40579]
[1763497518192,0.02212,93168.0,93167.0,0.5131811]
[1763497518393,0.00093,93170.0,93167.0,0.5131811]
[1763497518394,0.00093,93170.0,93169.0,0.04399]
[1763497518901,0.04411,93170.0,93169.0,0.04399]
[1763497520597,0.04318,93176.0,93175.0,0.04399]
[1763497520801,0.06674295,93176.0,93175.0,0.04399]
[1763497522001,0.04318,93176.0,93175.0,0.04399]
[1763497522900,0.05689,93176.0,93175.0,0.04399]
[1763497524699,0.04318,93176.0,93175.0,0.04399]
[1763497525199,0.02212,93176.0,93175.0,0.04399]
[1763497525404,0.00093,93180.0,93179.0,0.1536672]
[1763497526304,0.00093,93180.0,93179.0,0.04629]
[1763497526305,0.04533,93180.0,93179.0,0.04629]
[1763497526697,0.00093,93180.0,93179.0,0.04629]
[1763497527894,0.38325,93185.0,93184.0,0.1525315]
[1763497528094,0.02357228,93185.0,93184.0,0.1525315]
[1763497528290,0.04618228,93185.0,93184.0,0.1525315]
[1763497528897,0.06824228,93185.0,93184.0,0.1525315]
[1763497529798,0.06824228,93185.0,93184.0,0.04516]
[1763497529999,0.04467,93181.0,93180.0,0.04595069]
[1763497532102,0.01323,93177.0,93170.0,0.04395]
[1763497532306,0.04467,93171.0,93170.0,0.04595069]
[1763497534103,0.04467,93171.0,93170.0,0.04695069]
[1763497535801,0.04467,93171.0,93170.0,0.00300069]
[1763497536102,0.0579,93163.0,93155.0,0.0577786]
[1763497536295,0.0579,93163.0,93149.0,0.3608]
[1763497536296,0.04467,93150.0,93149.0,0.3608]
[1763497536492,0.04686803,93150.0,93149.0,0.3608]
[1763497536902,0.04686803,93150.0,93141.0,0.0577786]
[1763497537095,0.04686803,93150.0,93149.0,0.04395]
[1763497537292,0.04697804,93150.0,93149.0,0.04395]
[1763497538999,0.00230804,93150.0,93149.0,0.04395]
[1763497540610,0.00011001,93150.0,93149.0,0.04395]
[1763497543794,0.02491804,93150.0,93149.0,0.04495]
[1763497543995,0.04697804,93150.0,93149.0,0.04495]
[1763497544404,0.04697804,93150.0,93149.0,0.001]
[1763497544709,0.04697804,93150.0,93145.0,0.3608]
[1763497544710,0.04367,93146.0,93145.0,0.04395]
[1763497545006,0.04467,93133.0,93132.0,0.02191]
[1763497545406,0.04467,93127.0,93126.0,0.40501845]
[1763497546504,0.04467,93127.0,93126.0,0.38297845]
[1763497546710,0.04476689,93127.0,93126.0,0.38297845]
[1763497547106,0.04476689,93127.0,93126.0,0.40501845]
[1763497547501,0.04376689,93127.0,93126.0,0.40501845]
[1763497548207,9.689e-05,93127.0,93126.0,0.40601845]
[1763497548605,0.04476689,93127.0,93126.0,0.36206845]
[1763497548804,0.04476689,93127.0,93126.0,0.00126845]
[1763497549007,0.40556689,93127.0,93126.0,0.00126845]
[1763497551906,0.40556689,93127.0,93126.0,0.00026845]
[1763497553913,0.40556689,93127.0,93104.0,0.04403616]
[1763497553914,0.04467,93105.0,93104.0,0.04403616]
[1763497554109,0.04479387,93105.0,93104.0,0.04403616]
[1763497555413,0.04479387,93105.0,93104.0,0.04503616]
[1763497556015,0.04479387,93105.0,93104.0,0.02299616]
[1763497556210,0.04479387,93105.0,93104.0,0.04503616]
[1763497556513,0.00012387,93105.0,93104.0,0.04503616]
[1763497556913,0.02273387,93105.0,93104.0,0.04503616]
[1763497557610,0.04479387,93105.0,93104.0,0.04503616]
[1763497558118,0.04479387,93105.0,93104.0,0.04403616]
[1763497561618,0.04479387,93105.0,93104.0,8.616e-05]
[1763497561820,0.04423,93086.0,93085.0,0.40503]
[1763497563026,0.04423,93086.0,93085.0,0.3608]
[1763497563417,0.04423,93078.0,93077.0,0.40503]
[1763497563618,0.04436448,93078.0,93077.0,0.40503]
[1763497563818,0.04436448,93078.0,93077.0,0.3608]
[1763497564116,0.04336448,93078.0,93077.0,0.3608]
[1763497564919,0.04336448,93078.0,93077.0,0.3618]
[1763497565716,0.04336448,93078.0,93077.0,0.3608]
[1763497566326,0.04336448,93078.0,93077.0,0.02273]
[1763497566522,0.04423,93068.0,93067.0,0.40503]
[1763497567321,0.04423,93068.0,93067.0,0.3608]
[1763497567525,0.04423,93068.0,93067.0,0.40503]
[1763497567731,0.04423,93068.0,93067.0,0.02273]
[1763497567918,0.04423,93068.0,93067.0,0.001]
[1763497568321,0.04423,93068.0,93067.0,0.04523]
[1763497568528,0.04423,93068.0,93067.0,0.001]
[1763497569030,0.10970173,93070.0,93053.0,0.46461464]
[1763497569233,0.04423,93068.0,93067.0,0.001]
[1763497570630,0.04423,93054.0,93053.0,0.50884464]
[1763497570938,0.1517515,93054.0,93053.0,0.04423]
[1763497571232,0.04435316,93054.0,93053.0,0.04423]
[1763497571538,0.00012316,93054.0,93053.0,0.04423]
[1763497572130,0.001,93068.0,93063.0,0.04423]
[1763497572438,0.02405,93068.0,93067.0,0.04423]
[1763497572831,0.04423,93068.0,93067.0,0.04423]
[1763497573041,0.1517434,93061.0,93060.0,0.04423]
[1763497573335,0.151755,93051.0,93050.0,0.40503]
[1763497575134,0.04423,93057.0,93054.0,0.1075208]
[1763497575338,0.02305,93057.0,93056.0,0.04423]
[1763497575837,0.02524803,93060.0,93059.0,0.04423]
[1763497576036,0.00219803,93060.0,93059.0,0.04423]
[1763497576243,0.04642803,93060.0,93059.0,0.04423]
[1763497576451,0.05953803,93060.0,93059.0,0.04423]
[1763497577244,0.107525,93051.0,93050.0,0.3608]
[1763497577449,0.164865,93051.0,93050.0,0.40503]
[1763497578146,0.151755,93051.0,93050.0,0.40503]
[1763497578342,0.04423,93051.0,93050.0,0.40503]
[1763497579949,0.01311,93060.0,93050.0,0.3823]
[1763497580145,0.05953803,93060.0,93059.0,0.04423]
[1763497581451,0.05953803,93060.0,93059.0,0.02273]
[1763497581747,0.05953803,93060.0,93059.0,0.04534]
[1763497582051,0.06053803,93060.0,93059.0,0.04534]
[1763497582354,0.150925,93051.0,93050.0,0.40658]